Cogmind - Beta 14 *** ADVENTURER MODE // 2025.03.08 @ 20:06:11 // Winter2019/RPGLIKE Player: Gallgagger Result: Destroyed by T5-45H(R) with Subdweller Laser Performance ------------- Evolutions (0) 0 Regions Visited (2) 400 Robots Destroyed (20) 100 Value Destroyed (324) 324 Prototype IDs (2) 40 Alien Tech Used (0) 0 Bonus (0) 0 TOTAL SCORE: 864 Bonus ------- None Cogmind --------- Core Integrity 0/600 Matter 136/300 Energy 398/400 System Corruption 1% Temperature Cool (6) Movement Rolling (90) Location -10/Subcaves Parts ------- > --- POWER (2) -------- Ion Engine Ion Engine > --- PROPULSION (2) --- Wheel Compact Wheel > --- UTILITY (4) ------ Sensor Array Light Armor Plating (fused) Light Armor Plating > --- WEAPON (2) ------- Light Cannon Mining Claw > --- INVENTORY (0) ---- (None) Peak State ------------ > --- POWER ------------ Ion Engine Ion Engine > --- PROPULSION ------- Wheel Compact Wheel > --- UTILITY ---------- Sensor Array Light Armor Plating Light Armor Plating Light Armor Plating > --- WEAPON ----------- Assault Rifle Light Cannon > --- INVENTORY -------- (None) [Rating: 10] Favorites ----------- Power Ion Engine Engine Ion Engine Propulsion Compact Wheel Wheel Compact Wheel Utility Light Armor Plating Device Sensor Array Protection Light Armor Plating Weapon Light Cannon Energy Cannon Beam Cannon Ballistic Gun Assault Rifle Ballistic Cannon Light Cannon Slashing Weapon Mining Claw Build | -11 -10 -10 ------- Run | Yrd Mat Sub Slots Evolved 6 | 4 2 . Power 1 | 1 . . Propulsion 1 | 1 . . Utility 3 | 1 2 . Weapon 1 | 1 . . Parts Attached 21 | 7 14 . Power 2 | 2 . . Engine 2 | 2 . . Core . | . . . Reactor . | . . . Propulsion 3 | 3 . . Treads . | . . . Leg . | . . . Wheel 3 | 3 . . Hover . | . . . Flight . | . . . Utility 7 | . 7 . Device 1 | . 1 . Storage . | . . . Processor . | . . . Hackware . | . . . Protection 6 | . 6 . Artifact . | . . . Weapon 9 | 2 7 . Energy Gun . | . . . Energy Cannon 1 | . 1 . Ballistic Gun 4 | 2 2 . Ballistic Cannon 3 | . 3 . Launcher . | . . . Special Weapon . | . . . Impact Weapon . | . . . Slashing Weapon 1 | . 1 . Piercing Weapon . | . . . Special Melee Weapon . | . . . Unidentified Prototypes . | . . . Parts Lost 1 | . . 1 Power . | . . . Propulsion . | . . . Utility 1 | . . 1 Weapon . | . . . Highest Loss Streak 1 | . . 1 To Critical Strikes . | . . . Average Slot Usage (%) 97 | . 97 99 Engine 21 | . 21 20 Wheel 21 | . 21 20 Device 8 | . 8 10 Protection 23 | . 23 29 Ballistic Gun 9 | . 10 . Ballistic Cannon 8 | . 8 10 Slashing Weapon 2 | . 2 10 Peak Build Rating 10 | 6 10 10 Average Rating 8 | 4 8 9 On Entrance 5 | . 6 10 Naked Turns . | . . . Heaviest Build 26 | 13 26 25 Greatest Support 26 | 26 26 26 Greatest Overweight (x) . | . . . Average Overweight (x) . | . . . Largest Inventory Capacity . | . . . Average Capacity . | . . . Most Carried . | . . . Average Carried . | . . . Final Capacity . | . . . Final Carried . | . . . Class Distribution -------------------- 100% | Mutant Dominant Class ---------------- Mutant | -10/Materials Mutant | -10/Subcaves Resources | -11 -10 -10 ----------- Run | Yrd Mat Sub Matter Collected 588 | 147 441 . Remotely . | . . . Salvage Created 476 | . 476 . Parts 41 | . 40 1 Haulers Intercepted 2 | . 2 . Recyclers Shooed 3 | . 3 . Parts Field Recycled . | . . . Retrieved Matter . | . . . Parts Self-Destructed 9 | . . 9 Prevented . | . . . Kills | -11 -10 -10 ------- Run | Yrd Mat Sub Combat Hostiles Destroyed 12 | . 11 1 Guns 7 | . 7 . Cannons 5 | . 4 1 Classes Destroyed 8 | . 7 1 Worker 1 | . 1 . Tunneler 1 | . 1 . Hauler 2 | . 2 . Recycler 1 | . 1 . Watcher 3 | . 3 . Swarmer 9 | . 9 . Grunt 2 | . 2 . Subdweller 1 | . . 1 Best Kill Streak 4 | . 4 1 Combat Bots Only 3 | . 3 1 Max Kills in Single Turn 2 | . 2 1 Gunslinging . | . . . Exploded . | . . . Melee . | . . . Uniques/NPCs Destroyed . | . . . Combat | -11 -10 -10 -------- Run | Yrd Mat Sub Hostile Shots Fired 113 | . 44 69 Missed 29 | . 11 18 Damage Taken 1114 | . 212 902 Core 720 | . 139 581 Absorbed by Shields . | . . . Redirected to Core 560 | . 107 453 Ignored by Resistances 321 | . 67 254 Core Remaining (%) 100 | 100 . . Volleys Fired 75 | . 56 19 Largest 2 | . 2 1 Hottest 80 | . 80 35 Shots Fired 113 | . 94 19 Gun 58 | . 58 . Cannon 55 | . 36 19 Launcher . | . . . Special . | . . . Kinetic 111 | . 92 19 Thermal 2 | . 2 . Explosive . | . . . Electromagnetic . | . . . Robot Hit Streak 22 | . 13 22 Robot Miss Streak 4 | . 4 1 Penetration Max . | . . . Secondary Targets 2 | . 2 . Max Gunslinging Chain 1 | . 1 . Shots Hit Robots 69 | . 48 21 Core Hits 27 | . 23 4 Critical Kills . | . . . Critical Parts Destroyed 1 | . 1 . Critical Strikes 4 | . 4 . Destroy 1 | . 1 . Blast 3 | . 3 . Melee Attacks 6 | . 2 4 Impact . | . . . Slashing 6 | . 2 4 Piercing . | . . . Sneak Attacks . | . . . Combat Hostiles . | . . . Follow-up Attacks . | . . . Damage Inflicted 1086 | . 703 383 Guns 337 | . 337 . Cannons 660 | . 347 313 Explosions . | . . . Melee 70 | . . 70 Ramming 19 | . 19 . Kinetic 962 | . 649 313 Thermal 35 | . 35 . Explosive . | . . . Electromagnetic . | . . . Impact . | . . . Slashing 70 | . . 70 Piercing . | . . . Highest Corruption 1 | . 1 1 Average Corruption 1 | . 1 1 Corruption Purged . | . . . Corruption Blocked . | . . . Effects 13 | . 11 2 Message Errors 4 | . 3 1 Matter Fused 1 | . 1 . Heat Flow Errors 1 | . . 1 Energy Discharges 2 | . 2 . Parts Fused 1 | . 1 . Data Loss (minor) 2 | . 2 . Data Loss (major) 1 | . 1 . Misfires 1 | . 1 . Overload Shots . | . . . Overflow Damage 14 | . 14 . Projectiles 14 | . 14 . Explosions . | . . . Melee . | . . . Knockbacks 5 | . 1 4 Impact 1 | . 1 . Kinetic 2 | . . 2 Secondary 2 | . . 2 Self-Inflicted Damage 9 | . 9 . Shots . | . . . Rammed 1 | . 1 . Targets Rammed 1 | . 1 . Kicked . | . . . Crushed . | . . . Highest Temperature 114 | . 114 81 Average Temperature 27 | . 27 50 Received Heat Transfer 357 | . 6 351 Siege Activations . | . . . Robots Corrupted . | . . . Combat Hostiles . | . . . Parts Fried . | . . . Impact Corruptions . | . . . Robots Melted . | . . . Combat Hostiles . | . . . Parts Melted . | . . . Heat Transferred 74 | . 74 . Parts Sabotaged . | . . . Parts Stolen . | . . . Parts Stripped . | . . . Power Chain Reactions . | . . . Alert | -11 -10 -10 ------- Run | Yrd Mat Sub Peak Influence 286 | . 286 . Initial . | . . . Average 56 | . 58 . Maximum Alert Level 1 | . 1 . Low Security (%) 94 | 100 94 . Level 1 5 | . 5 . Level 2 . | . . . Level 3 . | . . . Level 4 . | . . . Level 5 . | . . . High Security . | . . . Max Security . | . . . Squads Dispatched 2 | . 2 . Investigation 2 | . 2 . Extermination . | . . . Reinforcement . | . . . Assault . | . . . Garrison . | . . . Intercept . | . . . Searches Triggered . | . . . Construction Impeded . | . . . Haulers Reinforced . | . . . Active Scanning Responses . | . . . Cargo Convoy Interrupts . | . . . Stealth | -11 -10 -10 --------- Run | Yrd Mat Sub Distress Signals . | . . . Communications Jammed . | . . . Distress Signals . | . . . Times Spotted 18 | . 14 4 Peak Tracking Total 4 | . 3 4 Tactical Retreats 2 | . 2 . Traps | -11 -10 -10 ------- Run | Yrd Mat Sub Traps Triggered 4 | . 4 . Indirectly . | . . . Trap Hack Attempts . | . . . Triggered . | . . . Disarmed . | . . . Reprogrammed 4 | . 4 . Reused . | . . . Traps Extracted . | . . . Installed . | . . . Triggered . | . . . Machines | -11 -10 -10 ---------- Run | Yrd Mat Sub Machines Disabled . | . . . Max in Single Turn . | . . . Machines Repaired . | . . . Machines Dismantled . | . . . Machines Sabotaged 1 | . 1 . Overloaded Fab Kills . | . . . Hacking | -11 -10 -10 --------- Run | Yrd Mat Sub Machines Accessed 9 | . 9 . Terminals 7 | . 7 . Fabricators . | . . . Repair Stations . | . . . Recycling Units 2 | . 2 . Scanalyzers . | . . . Garrison Access . | . . . Total Hacks 27 | . 27 . Successful 13 | . 13 . Failed 14 | . 14 . Catastrophic 2 | . 2 . Database Lockouts . | . . . Manual 17 | . 17 . Terminals 23 | . 23 . Fabricators . | . . . Repair Stations . | . . . Recycling Units 4 | . 4 . Scanalyzers . | . . . Garrison Access . | . . . Terminal Hacks 6 | . 6 . Prototype ID Bank 1 | . 1 . Alert Level 1 | . 1 . Unreport Threat 2 | . 2 . Locate Traps 1 | . 1 . Reprogram Traps 1 | . 1 . Fabricator Hacks . | . . . Repair Station Hacks . | . . . Recycling Unit Hacks . | . . . Scanalyzer . | . . . Garrison Access Hacks . | . . . Unauthorized Hacks 7 | . 7 . Terminals 6 | . 6 . Botnet 5 | . 5 . Sabotage 1 | . 1 . Fabricators . | . . . Repair Stations . | . . . Recycling Units 1 | . 1 . Tunnel 1 | . 1 . Scanalyzers . | . . . Garrison Access . | . . . Data Cores Recovered . | . . . Used . | . . . Hacking Detections 7 | . 7 . Full Trace Events 2 | . 2 . Feedback Events . | . . . Feedback Blocked . | . . . Robot Schematics Acquired . | . . . Robots Built . | . . . Authchips . | . . . Time . | . . . Total Robot Build Rating . | . . . Part Schematics Acquired . | . . . Parts Built . | . . . Authchips . | . . . Time . | . . . Total Part Build Rating . | . . . Parts Repaired . | . . . Time . | . . . Parts Recycled . | . . . Recycled Matter . | . . . Retrieved Matter . | . . . Retrieved Components . | . . . Parts Scanalyzed . | . . . Part Schematics Acquired . | . . . Parts Damaged . | . . . Bothacking | -11 -10 -10 ------------ Run | Yrd Mat Sub Used RIF Installer . | . . . Robots Hacked . | . . . Non-combat . | . . . Combat . | . . . Robot Hacks Applied . | . . . Relay Couplers Released . | . . . Fabnet Peak Effective % . | . . . Robots Rewired . | . . . Allies Hacked . | . . . Hacks Repelled . | . . . Allies | -11 -10 -10 -------- Run | Yrd Mat Sub Total Allies . | . . . Largest Group . | . . . Highest-Rated Group . | . . . Highest-Rated Ally . | . . . Total Orders . | . . . Ally Attacks . | . . . Total Damage . | . . . Kills . | . . . Allies Corrupted . | . . . Allies Melted . | . . . Intel | -11 -10 -10 ------- Run | Yrd Mat Sub Robot Analysis Total . | . . . Derelict Logs Recovered 1 | . . 1 Drone Launches . | . . . Drone Recoveries . | . . . Exploration | -11 -10 -10 ------------- Run | Yrd Mat Sub Turns Passed 1562 | 42 1419 101 Spaces Moved 1291 | 36 1197 58 Core 1 | 1 . . Treads . | . . . Legs . | . . . Wheels 1290 | 35 1197 58 Hover . | . . . Flight . | . . . Fastest Speed 50 | 50 90 90 Average Speed 89 | 89 90 90 Slowest Speed 100 | 100 90 90 Overloaded Moves . | . . . Propulsion Burnouts . | . . . Robots Hopped . | . . . Cave-ins Triggered . | . . . Exploration Rate (%) 35 | 3 99 5 Regions Visited 2 Branch Regions 1 Pre-discovered Areas 1 | . 1 . Known Exits Taken . | . . . Unknown Exits Taken 2 | 1 1 . Scrap Searched . | . . . Spaces Dug 1 | . 1 . Terrain Destroyed 1 | . 1 . Melee 1 | . 1 . Projectile . | . . . AOE . | . . . Terrain Rammed . | . . . Walls Destroyed . | . . . Machines Disabled . | . . . Actions | -11 -10 -10 --------- Run | Yrd Mat Sub Total 1565 | 43 1441 81 Wait 164 | . 164 . Move 1289 | 35 1196 58 Hop . | . . . Pick Up . | . . . Fast Attach 13 | 6 7 . Attach . | . . . Detach . | . . . Swap 8 | 1 7 . Drop 3 | 1 2 . Fire 75 | . 56 19 Melee 6 | . 2 4 Ram 1 | . 1 . Kick . | . . . Crush . | . . . Escape Stasis . | . . . Rewire . | . . . Trap . | . . . Miscellaneous 6 | . 6 . Route ------- -11/Scrapyard -10/Materials (discovered 6 exits: [*Mat x3] / [*Min x2] / [*Sub]) -10/Subcaves (discovered 1 exit: Rec) History --------- Turn | Location | Event 5 | -11/Scrapyard | Upgraded with Power slot (x1) 5 | -11/Scrapyard | Upgraded with Propulsion slot (x1) 5 | -11/Scrapyard | Upgraded with Utility slot (x1) 5 | -11/Scrapyard | Upgraded with Weapon slot (x1) 30 | -11/Scrapyard | Discovered new exit (range 15) 43 | -11/Scrapyard | Entered Materials 175 | -10/Materials | Discovered new exit (range 15) 322 | -10/Materials | Discovered new exit (range 16) 327 | -10/Materials | Build established: Mutant 345 | -10/Materials | Upgraded with Utility slot (x1) 460 | -10/Materials | Discovered new exit (range 8) 466 | -10/Materials | Discovered new exit (range 15) 650 | -10/Materials | Discovered new exit (range 16) 788 | -10/Materials | Reached level 2 901 | -10/Materials | Upgraded with Utility slot (x1) 1459 | -10/Materials | Discovered new exit (range 2) 1462 | -10/Materials | Entered Subcaves 1465 | -10/Subcaves | Identified exit to Recycling 1536 | -10/Subcaves | Core integrity fell below 50% 1552 | -10/Subcaves | Core integrity fell below 20% 1563 | -10/Subcaves | Destroyed by T5-45H(R) with Subdweller Laser Last Messages --------------- 01408_ K-01 Serf collects debris. 01426_ Acquired 12 matter. 01445_ System corrupted: Matter fused (-7). 01459_ EXIT=FOUND LOCATION=UNKNOWN AMBIENT_HEAT=-10 GOAL=ESCAPE 01465_ Acquired derelict log, extracted data. Loading 1 Subcaves exit... 01479_ System corrupted: Heat flow error (+143). 01496_ M,3XAPF3D